Cogmind - Beta 10 X1 @@@ ROGUE MODE // 2020.06.03 @ 05:10:31 Player: Owlsley Result: Destroyed by B-99 Colossus with Linear Accelerator Performance ------------- Evolutions (9) 4500 Regions Visited (18) 3600 Robots Destroyed (143) 715 Value Destroyed (6058) 6058 Prototype IDs (23) 460 Alien Tech Used (0) 0 Bonus (3694) 3694 TOTAL SCORE: 19027 Bonus ------- High Alert Combat Kills 567 Follower Combat Kills 2164 Entered Garrisons 200 Used RIF Installer 500 Network Hubs Disabled 200 Built Enhanced Grunts 300 A7 Reached Mainframe 300 Met R17 at Cetus 500 Friendly Fire -1037 Cogmind --------- Core Integrity 0/1600 Matter 80/300 Energy 82/100 System Corruption 16% Temperature Cool (0) Movement Core (50) Location -1/Command Parts ------- > --- POWER (2) -------- (None) > --- PROPULSION (8) --- (None) > --- UTILITY (12) ----- (None) > --- WEAPON (3) ------- (None) > --- INVENTORY (4) ---- Quantum Reactor Mini Drone Bay (3/3) Nova Cannon Power Sword Peak State ------------ > --- POWER ------------ Quantum Reactor Quantum Reactor > --- PROPULSION ------- Q-thruster Improved Diametric Drive Impulse Thruster Array Impulse Thruster Array Impulse Thruster Array > --- UTILITY ---------- Experimental Optical Array Advanced Signal Interpreter Advanced Terrain Scan Processor Advanced Targeting Computer Advanced Targeting Computer Advanced Melee Analysis Suite Improved Core Analyzer Reaction Control System Improved Shield Generator Hacking Suite Corruption Screen Long-range Tractor Beam > --- WEAPON ----------- Tesla Rifle Enhanced Quantum Rifle Enhanced Force Lance > --- INVENTORY -------- Quantum Reactor High-capacity Storage Unit Nova Cannon [Rating: 162] Favorites ----------- Power Micro Nuclear Core Engine Heavy Ion Engine Power Core Micro Nuclear Core Reactor Antimatter Reactor Propulsion Aluminum Leg Treads Biometal Heavy Treads Leg Aluminum Leg Wheel Compact Wheel Hover Unit Antigrav Array Flight Unit Impulse Thruster Array Utility Large Storage Unit Device Advanced Sensor Array Storage Large Storage Unit Processor Advanced Signal Interpreter Hackware System Shield Protection Centrium Medium Armor Plating Weapon Light Cannon Energy Gun Medium Laser Energy Cannon Phase Cannon Ballistic Gun Improved Assault Rifle Ballistic Cannon Light Cannon Launcher Precision Grenade Launcher Special Weapon Stasis Projector Slashing Weapon Ionic Axe Piercing Weapon Enhanced Force Lance Special Melee Weapon Datajack Build | -11 -10 -9 -8 -8 -7 -6 -6 -6 -6 -6 -6 -6 -5 -4 -3 -2 -1 -1 ------- Run | Scr Mat Mat Mat Gar Fac Fac Was Fac Ext Cet Arc Hub Fac Fac Res Res Acc Com Slots Evolved 18 | . . 2 2 . 2 2 . . . . . . 2 2 2 2 2 . Power 1 | . . . . . . . . . . . . . . 1 . . . . Propulsion 6 | . . 2 . . . . . . . . . . . . . 2 2 . Utility 10 | . . . 1 . 2 2 . . . . . . 2 1 2 . . . Weapon 1 | . . . 1 . . . . . . . . . . . . . . . Parts Attached 235 | 3 7 35 5 13 10 14 2 6 15 9 1 5 18 11 31 20 29 1 Power 16 | . . 5 . 1 1 . . . . 1 . 1 1 . 2 2 2 . Engine 5 | . . 4 . . . . . . . . . 1 . . . . . . Core 3 | . . 1 . 1 1 . . . . . . . . . . . . . Reactor 8 | . . . . . . . . . . 1 . . 1 . 2 2 2 . Propulsion 72 | 2 . 15 1 5 2 3 1 2 8 3 1 1 2 1 10 7 8 . Treads 4 | . . . . . . . . . . . . . . . . 4 . . Leg 56 | . . 15 1 5 2 3 1 2 8 3 1 1 2 1 10 1 . . Wheel 2 | 2 . . . . . . . . . . . . . . . . . . Hover 2 | . . . . . . . . . . . . . . . . 1 1 . Flight 8 | . . . . . . . . . . . . . . . . 1 7 . Utility 55 | 1 2 2 3 2 5 3 . . 1 1 . . 6 4 9 7 9 . Device 19 | . . . 1 . 1 1 . . . . . . 3 2 2 3 6 . Storage 7 | 1 2 2 . . . . . . . . . . . 1 1 . . . Processor 12 | . . . . . . 1 . . . . . . . 1 4 4 2 . Hackware 10 | . . . 1 1 3 1 . . 1 . . . 2 . . . 1 . Protection 7 | . . . 1 1 1 . . . . 1 . . 1 . 2 . . . Artifact . | . . . . . . . . . . . . . . . . . . . Weapon 92 | . 5 13 1 5 2 8 1 4 6 4 . 3 9 6 10 4 10 1 Energy Gun 6 | . 2 . . . . . . . . . . . . 1 . 1 2 . Energy Cannon 7 | . . 1 . . . 2 . 1 1 . . . . . . . 1 1 Ballistic Gun 23 | . 1 4 . . . . . 1 3 3 . 1 4 3 3 . . . Ballistic Cannon 28 | . 2 5 1 3 1 3 1 1 1 . . 2 3 . 5 . . . Launcher 8 | . . . . 2 . 2 . 1 1 1 . . . . 1 . . . Special Weapon 1 | . . . . . . . . . . . . . . . . 1 . . Impact Weapon . | . . . . . . . . . . . . . . . . . . . Slashing Weapon 1 | . . . . . . . . . . . . . . . 1 . . . Piercing Weapon 9 | . . . . . . . . . . . . . . . . 2 7 . Special Melee Weapon 9 | . . 3 . . 1 1 . . . . . . 2 2 . . . . Unidentified Prototypes 15 | . . 4 . . . 1 . . . 2 1 . . 1 3 . 3 . Parts Lost 87 | . 2 6 . 3 . 1 1 3 6 1 . 2 2 . 26 9 7 18 Power 5 | . . 2 . . . . . . . . . 1 . . 1 . . 1 Propulsion 36 | . . 4 . 2 . . 1 2 3 . . 1 . . 12 4 3 4 Utility 28 | . . . . 1 . . . . . 1 . . . . 7 5 4 10 Weapon 18 | . 2 . . . . 1 . 1 3 . . . 2 . 6 . . 3 Highest Loss Streak 26 | . 2 1 . 3 . 1 1 3 5 1 . 2 1 . 26 7 2 16 Average Slot Usage (%) 92 | . 99 98 98 99 98 99 94 99 98 99 100 99 98 94 88 46 53 65 Engine 3 | . 14 9 9 4 . . . . . . . 1 3 . . . . . Core 2 | . . 1 . 4 7 6 6 6 6 3 . . . . . . . . Reactor 1 | . . . . . . . . . . 2 6 4 1 5 6 2 2 3 Leg 23 | . . 42 36 36 30 26 26 25 25 26 26 25 22 21 17 . . . Wheel 2 | . 28 . . . . . . . . . . . . . . . . . Device 2 | . . . 1 . . 6 6 6 . . . . 5 10 9 4 5 7 Storage 14 | . 28 22 18 18 15 13 13 13 13 13 13 13 11 10 11 . . . Processor 6 | . . . . . . 6 6 6 6 6 6 6 5 9 17 22 25 27 Hackware 11 | . . . 4 2 21 20 20 20 25 23 20 20 21 21 9 4 2 4 Protection 1 | . . . 2 6 . . . . . 2 6 6 4 . 1 . . . Energy Gun 1 | . 9 . . . . . . . . . . . . 2 . . 2 3 Energy Cannon 1 | . . . . . . 4 6 6 4 . . . . . . . . . Ballistic Gun 8 | . 10 13 18 10 7 3 . 3 7 14 20 17 11 10 7 . . . Ballistic Cannon 7 | . 7 7 9 16 11 8 7 8 5 2 . 2 4 1 2 . . . Naked Turns 6 | . . . . . . . . . . . . . . . . . . 6 Heaviest Build 116 | 16 43 46 54 54 53 60 60 62 61 73 73 77 75 69 116 23 70 44 Greatest Support 106 | 32 32 46 46 46 56 94 94 82 78 71 84 84 88 97 106 23 101 71 Greatest Overweight (x) 2 | . 1 1 1 1 1 . . . 1 1 1 . 1 . 1 2 2 . Average Overweight (x) . | . . . 1 1 . . . . . . . . . . . . . . Largest Inventory Capacity 16 | 8 16 16 16 16 16 16 16 16 16 16 16 16 16 16 16 4 4 4 Average Capacity 14 | 7 15 16 16 16 16 16 16 16 16 16 16 16 16 16 14 4 4 4 Most Carried 16 | 8 16 16 16 16 16 16 16 16 16 16 16 16 16 16 16 4 4 4 Average Carried 14 | 6 15 15 15 15 15 15 15 15 15 15 15 15 15 15 13 3 3 3 Final Capacity 16 | 8 16 16 16 16 16 16 16 16 16 16 16 16 16 16 4 4 4 4 Final Carried 16 | 8 16 16 16 16 16 16 15 16 16 16 16 16 16 16 4 4 3 4 Class Distribution -------------------- 34% | Mutant 14% | Scavenger-Tank 11% | Scavenger-Skirmisher 6% | Bothacker-Mutant 6% | Bothacker-Gunner 3% | Sprinter 3% | Scavenger-Mutant 3% | Skirmisher Dominant Class ---------------- Mutant | -10/Materials Mutant | -9/Materials Gunner | -8/Materials Scavenger-Tank | -8/Garrison Bothacker-Gunner | -7/Factory Bothacker-Mutant | -6/Factory Mutant | -6/Waste Mutant | -6/Factory Hacker-Gunner | -6/Extension Scavenger-Tank | -6/Cetus Scavenger-Tank | -6/Archives Scavenger-Tank | -6/Hub_04(d) Scavenger-Skirmisher | -5/Factory Scavenger-Skirmisher | -4/Factory Scavenger-Skirmisher | -3/Research Mutant | -2/Research Sprinter | -1/Access Sprinter | -1/Command Resources | -11 -10 -9 -8 -8 -7 -6 -6 -6 -6 -6 -6 -6 -5 -4 -3 -2 -1 -1 ----------- Run | Scr Mat Mat Mat Gar Fac Fac Was Fac Ext Cet Arc Hub Fac Fac Res Res Acc Com Matter Collected 5632 | 233 189 935 188 578 77 347 . 349 399 294 107 202 584 189 820 120 11 10 Remotely . | . . . . . . . . . . . . . . . . . . . Salvage Created 5649 | 63 540 1124 224 650 78 168 . 201 384 232 156 253 440 168 958 . . 10 Parts 266 | 4 23 72 16 29 5 4 . 11 11 10 5 17 11 9 36 . . 3 Haulers Intercepted 8 | . 2 5 . . . . . . . . . . . . 1 . . . Recyclers Shooed 2 | . . . . . . . . . . . . . 2 . . . . . Parts Field Recycled . | . . . . . . . . . . . . . . . . . . . Retrieved Matter . | . . . . . . . . . . . . . . . . . . . Parts Self-Destructed . | . . . . . . . . . . . . . . . . . . . Prevented . | . . . . . . . . . . . . . . . . . . . Kills | -11 -10 -9 -8 -8 -7 -6 -6 -6 -6 -6 -6 -6 -5 -4 -3 -2 -1 -1 ------- Run | Scr Mat Mat Mat Gar Fac Fac Was Fac Ext Cet Arc Hub Fac Fac Res Res Acc Com Combat Hostiles Destroyed 110 | . 8 26 5 22 2 6 . 7 3 2 2 3 10 2 12 . . . Guns 51 | . 6 8 4 8 1 . . 2 1 1 2 3 7 2 6 . . . Cannons 43 | . 2 17 1 5 1 5 . 5 2 . . . 3 . 2 . . . AOE 13 | . . . . 9 . 1 . . . 1 . . . . 2 . . . Classes Destroyed 14 | 1 3 4 1 . 2 . . 1 . . . . 1 . 1 . . . Worker 4 | . . . . . . . . 1 . . . 2 . . . . . 1 Builder 4 | . . 2 . . . . . . . . . 1 1 . . . . . Hauler 8 | . 2 5 . . . . . . . . . . . . 1 . . . Recycler 7 | 1 2 1 . . . . . . 2 . . . . . 1 . . . Operator 4 | . 1 1 . . . 1 . . . . . 1 . . . . . . Watcher 4 | . . 1 . . . . . . . 2 . . . 1 . . . . Swarmer 31 | . . 7 . 8 . 3 . 6 . . . . 4 . 3 . . . Grunt 43 | . 8 14 1 12 . . . . 1 . . . 3 1 3 . . . Brawler 1 | . . . . . . . . . . . . . . . 1 . . . Duelist 3 | . . . 1 2 . . . . . . . . . . . . . . Sentry 22 | . . 5 3 1 . 1 . 1 1 . 2 2 2 1 3 . . . Specialist 1 | . . . . . . . . . . . . . 1 . . . . . Hunter 4 | . . . . . 1 . . . . . . 1 . . 2 . . . Programmer 4 | . . . . . 1 2 . . 1 . . . . . . . . . Cetus Guard 2 | . . . . . . . . . . 2 . . . . . . . . Thug 1 | . . . . . . . . . . 1 . . . . . . . . Best Kill Streak 14 | 1 2 6 4 14 2 3 . 8 1 3 2 4 5 1 4 . . 1 Combat Bots Only 14 | . 2 6 4 14 2 3 . 7 1 2 2 2 3 1 4 . . . Max Kills in Single Turn 4 | 1 1 2 1 4 1 1 . 1 1 2 1 4 2 1 1 . . 1 Gunslinging . | . . . . . . . . . . . . . . . . . . . Exploded 3 | . . . . 3 . 1 . . . 1 . . . . 1 . . . Melee . | . . . . . . . . . . . . . . . . . . . Uniques/NPCs Destroyed . | . . . . . . . . . . . . . . . . . . . Combat | -11 -10 -9 -8 -8 -7 -6 -6 -6 -6 -6 -6 -6 -5 -4 -3 -2 -1 -1 -------- Run | Scr Mat Mat Mat Gar Fac Fac Was Fac Ext Cet Arc Hub Fac Fac Res Res Acc Com Damage Taken 18762 | . 538 1127 163 965 33 375 234 542 1380 198 116 534 868 380 5243 2375 1534 2157 Core 4396 | . 127 157 15 223 21 79 50 55 156 11 . 24 121 46 1242 441 220 1408 Absorbed by Shields 1267 | . . . . 7 . . . . 135 87 . . . . 587 . 76 375 Core Remaining (%) 67 | 100 49 60 . 56 97 . . . . . . 55 87 96 4 69 . . Volleys Fired 384 | 3 59 80 14 32 5 20 18 15 20 12 6 15 35 8 38 3 . 1 Largest 3 | 2 2 2 3 3 3 3 1 3 3 3 3 3 3 3 3 1 . 1 Hottest 191 | 70 80 70 81 93 106 182 90 191 173 124 91 91 118 149 179 88 . 113 Shots Fired 879 | 6 117 159 42 90 14 42 18 31 49 29 19 35 94 24 106 3 . 1 Gun 484 | 6 93 56 28 39 5 3 . 5 23 19 19 31 63 23 68 3 . . Cannon 376 | . 24 103 14 45 9 37 18 26 25 4 . 4 31 1 34 . . 1 Launcher 19 | . . . . 6 . 2 . . 1 6 . . . . 4 . . . Special . | . . . . . . . . . . . . . . . . . . . Kinetic 749 | 3 76 159 42 84 14 26 . 22 36 23 19 35 94 17 99 . . . Thermal 111 | 3 41 . . . . 14 18 9 12 . . . . 7 3 3 . 1 Explosive 8 | . . . . 6 . 2 . . . . . . . . . . . . Electromagnetic 11 | . . . . . . . . . 1 6 . . . . 4 . . . Robot Hit Streak 17 | 3 16 17 10 10 4 7 . 4 5 5 4 4 11 16 11 . . . Robot Miss Streak 10 | 2 4 3 3 4 1 9 . 10 5 5 4 10 9 2 5 . . . Penetration Max 2 | . . . . . . . . . . . . . 1 . 2 . . . Secondary Targets 2 | . 1 . . 1 . . . . . . . . . . . . . . Max Gunslinging Chain 1 | . 1 . . 1 . . . . . . . . . . . . . . Shots Hit Robots 559 | 3 80 107 29 36 17 21 . 14 36 22 16 25 67 22 63 . . 1 Core Hits 324 | 2 27 45 11 41 4 14 . 14 27 23 15 26 29 7 38 . . 1 Critical Hits 27 | . . . . . . 1 . 2 . . . 3 6 2 13 . . . Critical Kills 12 | . . . . . . 1 . 2 . . . 1 1 2 5 . . . Critical Parts Destroyed 13 | . . . . . . . . . . . . 2 5 . 6 . . . Melee Attacks 32 | . . 3 . . 9 1 . . . . . . 2 4 . 1 10 2 Impact . | . . . . . . . . . . . . . . . . . . . Slashing . | . . . . . . . . . . . . . . . . . . . Piercing 13 | . . . . . . . . . . . . . . . . 1 10 2 Sneak Attacks 13 | . . 3 . . 8 . . . . . . . 1 . . . . 1 Combat Hostiles 1 | . . . . . . . . . . . . . 1 . . . . . Follow-up Attacks . | . . . . . . . . . . . . . . . . . . . Damage Inflicted 14275 | 35 818 1831 444 1408 146 595 . 331 1264 1351 305 1195 1707 422 2235 6 34 148 Guns 6558 | 35 566 615 299 389 71 36 . 44 530 255 305 446 1193 416 1358 . . . Cannons 4432 | . 252 1216 145 253 75 454 . 287 607 84 . . 514 . 545 . . . Explosions 3108 | . . . . 766 . 105 . . 127 1012 . 749 . . 317 . 32 . Melee 148 | . . . . . . . . . . . . . . . . . . 148 Ramming 29 | . . . . . . . . . . . . . . 6 15 6 2 . Kinetic 9847 | 10 506 1831 444 642 146 280 . 236 859 339 305 446 1707 264 1832 . . . Thermal 1851 | 25 312 . . . . 210 . 95 278 578 . . . 152 169 . 32 . Explosive 871 | . . . . 766 . 105 . . . . . . . . . . . . Electromagnetic 1529 | . . . . . . . . . 127 434 . 749 . . 219 . . . Impact . | . . . . . . . . . . . . . . . . . . . Slashing . | . . . . . . . . . . . . . . . . . . . Piercing 148 | . . . . . . . . . . . . . . . . . . 148 Highest Corruption 19 | . 2 2 . . . 1 17 17 18 18 18 19 10 1 1 2 16 16 Average Corruption 11 | . 1 2 . . . 1 8 17 17 18 18 18 9 1 1 1 10 16 Corruption Purged . | . . . . . . . . . . . . . . . . . . . Effects 191 | . 4 . . . . 4 5 41 44 21 9 17 14 . 1 . 15 16 Message Errors 38 | . 3 . . . . 3 1 8 8 3 2 5 1 . 1 . 1 2 Matter Fused 31 | . . . . . . . . 4 11 5 . 1 5 . . . 2 3 Heat Flow Errors 14 | . . . . . . . . 4 3 2 1 2 . . . . 1 1 Energy Discharges 15 | . . . . . . . 1 3 4 . 2 1 2 . . . 2 . Parts Rejected 2 | . . . . . . . . . 2 . . . . . . . . . Data Loss (minor) 11 | . 1 . . . . 1 . 4 2 2 1 . . . . . . . Data Loss (major) 6 | . . . . . . . 2 . 1 1 . . . . . . 1 1 Misfires 5 | . . . . . . . . 1 1 1 1 1 . . . . . . Alerts 2 | . . . . . . . . . . 1 . . . . . . 1 . Misdirections 35 | . . . . . . . . 10 6 . 1 2 2 . . . 6 8 Targeting Errors 27 | . . . . . . . 1 6 4 6 1 4 3 . . . 1 1 Weapon Failures 5 | . . . . . . . . 1 2 . . 1 1 . . . . . Overload Shots . | . . . . . . . . . . . . . . . . . . . Overflow Damage 142 | . . 4 . 2 . 9 . . . 30 . 71 26 . . . . . Projectiles 39 | . . 4 . . . 9 . . . . . . 26 . . . . . Explosions 103 | . . . . 2 . . . . . 30 . 71 . . . . . . Melee . | . . . . . . . . . . . . . . . . . . . Knockbacks 45 | . 4 11 1 5 . 6 . 4 2 . . . 3 . 9 . . . Impact . | . . . . . . . . . . . . . . . . . . . Kinetic 42 | . 4 9 1 5 . 6 . 4 2 . . . 3 . 8 . . . Secondary 3 | . . 2 . . . . . . . . . . . . 1 . . . Self-Inflicted Damage 304 | . . . . . . 40 . . 27 13 . 106 . . 7 3 108 . Shots 5 | . . . . . . 1 . . 1 1 . 1 . . . . 1 . Rammed 5 | . . . . . . . . . . . . . . . 3 1 1 . Targets Rammed 6 | . . . . . . . . . . . . . . 1 3 1 1 . Kicked 1 | . . . . . . . . . . . . . . 1 . . . . Crushed . | . . . . . . . . . . . . . . . . . . . Highest Temperature 395 | 50 190 94 52 197 48 270 66 395 270 289 113 303 248 117 390 42 106 215 Average Temperature 73 | 26 58 23 20 51 25 85 25 191 97 97 37 77 75 36 114 22 26 82 Received Heat Transfer 3034 | . 306 435 72 315 . 36 . 54 208 . 27 69 69 81 1050 225 27 60 Effects 4 | . . . . . . . . 1 . 1 . . . . 2 . . . Shutdowns 2 | . . . . . . . . 1 . . . . . . 1 . . . Interference 1 | . . . . . . . . . . 1 . . . . . . . . Damage (minor) 1 | . . . . . . . . . . . . . . . 1 . . . Siege Activations . | . . . . . . . . . . . . . . . . . . . Robots Corrupted 1 | . . . . . . . . . . . . . . . 1 . . . Combat Hostiles 1 | . . . . . . . . . . . . . . . 1 . . . Parts Fried 8 | . . . . . . . . . . . . 2 . . 6 . . . Impact Corruptions 2 | . . 2 . . . . . . . . . . . . . . . . Robots Melted . | . . . . . . . . . . . . . . . . . . . Combat Hostiles . | . . . . . . . . . . . . . . . . . . . Parts Melted 7 | 1 3 . . . . 3 . . . . . . . . . . . . Heat Transferred 2494 | 74 854 . . . . 222 . 111 400 300 . . . 222 261 . 50 . Parts Sabotaged 2 | . . . . . . . . . . . . . . . 2 . . . Parts Stolen . | . . . . . . . . . . . . . . . . . . . Parts Stripped . | . . . . . . . . . . . . . . . . . . . Power Chain Reactions 4 | . . . . . . . . . . 3 . . . . 1 . . . Missiles Intercepted . | . . . . . . . . . . . . . . . . . . . Alert | -11 -10 -9 -8 -8 -7 -6 -6 -6 -6 -6 -6 -6 -5 -4 -3 -2 -1 -1 ------- Run | Scr Mat Mat Mat Gar Fac Fac Was Fac Ext Cet Arc Hub Fac Fac Res Res Acc Com Peak Influence 1035 | 5 145 515 416 1035 643 279 62 206 380 515 382 777 748 531 483 253 347 200 Average Influence 329 | 4 47 368 224 766 518 171 32 81 129 318 356 328 528 417 381 185 185 124 Maximum Alert Level 3 | . . 2 2 3 2 1 . 1 1 2 1 3 3 2 2 1 1 1 Low Security (%) 34 | 100 100 10 55 . . 53 100 74 71 8 . 14 . . . 34 65 99 Level 1 30 | . . 45 41 11 7 46 . 25 28 80 100 49 16 45 50 65 34 . Level 2 23 | . . 43 3 6 92 . . . . 11 . 30 66 54 49 . . . Level 3 11 | . . . . 82 . . . . . . . 5 17 . . . . . Level 4 . | . . . . . . . . . . . . . . . . . . . Level 5 . | . . . . . . . . . . . . . . . . . . . High Security . | . . . . . . . . . . . . . . . . . . . Max Security . | . . . . . . . . . . . . . . . . . . . Squads Dispatched 31 | . 1 2 1 . 2 4 . 1 . . . 3 5 1 6 3 2 . Investigation 2 | . . . . . . . . . . . . . 1 . 1 . . . Extermination 7 | . . . . . 1 3 . . . . . . . 1 1 1 . . Reinforcement 17 | . 1 2 . . 1 1 . . . . . 3 3 . 2 2 2 . Assault 3 | . . . . . . . . . . . . . 1 . 2 . . . Garrison 2 | . . . 1 . . . . 1 . . . . . . . . . . Intercept . | . . . . . . . . . . . . . . . . . . . Construction Impeded 3 | . . . . . . . . . . . . . 1 . 1 . 1 . Haulers Reinforced 1 | . . . . . . . . . . . . . . . 1 . . . Stealth | -11 -10 -9 -8 -8 -7 -6 -6 -6 -6 -6 -6 -6 -5 -4 -3 -2 -1 -1 --------- Run | Scr Mat Mat Mat Gar Fac Fac Was Fac Ext Cet Arc Hub Fac Fac Res Res Acc Com Distress Signals 18 | . 2 4 1 . 1 . . 1 . 2 . 2 1 . 2 1 1 . Communications Jammed . | . . . . . . . . . . . . . . . . . . . Distress Signals . | . . . . . . . . . . . . . . . . . . . Times Spotted 389 | . 21 37 8 23 6 9 6 10 22 10 12 12 27 13 52 47 42 32 Peak Tracking Total 21 | . 3 7 5 9 2 4 6 4 5 5 2 5 5 5 16 21 13 21 Tactical Retreats 39 | . 1 3 . 1 . . 1 . 3 . . . 1 . 6 10 8 5 Traps | -11 -10 -9 -8 -8 -7 -6 -6 -6 -6 -6 -6 -6 -5 -4 -3 -2 -1 -1 ------- Run | Scr Mat Mat Mat Gar Fac Fac Was Fac Ext Cet Arc Hub Fac Fac Res Res Acc Com Traps Triggered 26 | . 2 1 . 8 . 1 . . . . . 4 2 . . 1 . 7 Indirectly 4 | . . . . . . . . . . . . 4 . . . . . . Trap Hack Attempts . | . . . . . . . . . . . . . . . . . . . Triggered . | . . . . . . . . . . . . . . . . . . . Disarmed . | . . . . . . . . . . . . . . . . . . . Reprogrammed . | . . . . . . . . . . . . . . . . . . . Reused . | . . . . . . . . . . . . . . . . . . . Traps Extracted . | . . . . . . . . . . . . . . . . . . . Installed . | . . . . . . . . . . . . . . . . . . . Triggered . | . . . . . . . . . . . . . . . . . . . Machines | -11 -10 -9 -8 -8 -7 -6 -6 -6 -6 -6 -6 -6 -5 -4 -3 -2 -1 -1 ---------- Run | Scr Mat Mat Mat Gar Fac Fac Was Fac Ext Cet Arc Hub Fac Fac Res Res Acc Com Machines Disabled 27 | . . 2 . 4 1 1 . . 1 1 2 8 1 2 1 . 2 1 Max in Single Turn 7 | . . 1 . 1 1 . . . 1 . 1 7 . 2 1 . 1 1 Garrison Access 3 | . . . . . . . . 1 . . . . . . . . 2 . Garrison Relay 4 | . . . . 4 . . . . . . . . . . . . . . Network Hub 1 | . . . . . . . . . . . . 1 . . . . . . Energy Cycler 1 | . . . . . . . . . . . . . . . . . 1 . Machines Sabotaged . | . . . . . . . . . . . . . . . . . . . Garrisons Compromised . | . . . . . . . . . . . . . . . . . . . Overloaded Fab Kills 6 | . . . . . . . . . . . . . . . 6 . . . Fab Network Shutdowns . | . . . . . . . . . . . . . . . . . . . Hacking | -11 -10 -9 -8 -8 -7 -6 -6 -6 -6 -6 -6 -6 -5 -4 -3 -2 -1 -1 --------- Run | Scr Mat Mat Mat Gar Fac Fac Was Fac Ext Cet Arc Hub Fac Fac Res Res Acc Com Machines Accessed 64 | . 8 7 1 . 6 3 . 5 9 1 1 1 5 4 2 2 7 2 Terminals 37 | . 5 4 . . 4 1 . 3 9 1 . 1 1 1 . 1 5 1 Fabricators 6 | . . . . . . 1 . . . . . . 1 2 1 1 . . Repair Stations 7 | . 1 2 . . . . . 1 . . . . 1 . 1 . . 1 Recycling Units 6 | . 2 1 . . 1 . . . . . . . 1 1 . . . . Scanalyzers 1 | . . . . . 1 . . . . . . . . . . . . . Garrison Access 6 | . . . 1 . . 1 . 1 . . . . 1 . . . 2 . Total Hacks 203 | . 32 19 3 . 30 9 . 8 29 2 2 1 21 11 4 7 23 2 Successful 120 | . 22 13 2 . 23 3 . 3 18 2 2 . 14 6 2 4 6 . Failed 83 | . 10 6 1 . 7 6 . 5 11 . . 1 7 5 2 3 17 2 Catastrophic 19 | . . 1 1 . 2 1 . 2 1 . . 1 . 1 . . 7 2 Database Lockouts . | . . . . . . . . . . . . . . . . . . . Manual 90 | . 19 6 2 . 5 6 . 1 12 3 . . 14 1 2 . 19 . Terminals 123 | . 22 9 . . 8 5 . 6 29 2 . 1 13 4 . 2 21 1 Fabricators 17 | . . . . . . 2 . . . . . . 2 6 2 5 . . Repair Stations 15 | . 2 8 . . . . . 1 . . . . 1 . 2 . . 1 Recycling Units 19 | . 8 2 . . 6 . . . . . . . 2 1 . . . . Scanalyzers 16 | . . . . . 16 . . . . . . . . . . . . . Garrison Access 11 | . . . 3 . . 2 . 1 . . . . 3 . . . 2 . Terminal Hacks 47 | . 11 4 . . 2 . . 2 13 1 2 . 7 2 . 2 1 . Record 3 | . . . . . . . . . 1 . 2 . . . . . . . Robot Schematic 1 | . . . . . . . . . . . . . . . . 1 . . Robot Analysis 4 | . 3 . . . . . . . 1 . . . . . . . . . Prototype ID Bank 4 | . 2 1 . . . . . . 1 . . . . . . . . . Open Door 8 | . . . . . . . . 1 6 1 . . . . . . . . Level Access Points 2 | . . . . . . . . . . . . . 1 . . 1 . . Branch Access Points 2 | . . 1 . . . . . . . . . . 1 . . . . . Terminal Index 2 | . 1 . . . . . . . 1 . . . . . . . . . Unreport Threat 6 | . 2 . . . . . . . 1 . . . 3 . . . . . Locate Traps 4 | . 1 1 . . 1 . . . . . . . . 1 . . . . Hauler Manifests 3 | . 1 . . . . . . . 1 . . . 1 . . . . . Registered Components 1 | . . . . . . . . . . . . . 1 . . . . . Registered Prototypes 1 | . 1 . . . . . . . . . . . . . . . . . Zone Layout 6 | . . 1 . . 1 . . 1 1 . . . . 1 . . 1 . Fabricator Hacks 9 | . . . . . . 1 . . . . . . 2 4 . 2 . . Load Schematic 4 | . . . . . . . . . . . . . 1 2 . 1 . . Build 5 | . . . . . . 1 . . . . . . 1 2 . 1 . . Repair Station Hacks 11 | . 2 8 . . . . . . . . . . . . 1 . . . Scan Component 5 | . 1 4 . . . . . . . . . . . . . . . . Repair 5 | . 1 4 . . . . . . . . . . . . . . . . Refit 1 | . . . . . . . . . . . . . . . 1 . . . Recycling Unit Hacks 6 | . 3 . . . 2 . . . . . . . 1 . . . . . Report Inventory 3 | . 2 . . . 1 . . . . . . . . . . . . . Retrieve Components 3 | . 1 . . . 1 . . . . . . . 1 . . . . . Scanalyzer 15 | . . . . . 15 . . . . . . . . . . . . . Insert Component 7 | . . . . . 7 . . . . . . . . . . . . . Analyze 8 | . . . . . 8 . . . . . . . . . . . . . Garrison Access Hacks 4 | . . . 1 . . . . 1 . . . . . . . . 2 . Unlock Access 1 | . . . 1 . . . . . . . . . . . . . . . Seal Access 3 | . . . . . . . . 1 . . . . . . . . 2 . Unauthorized Hacks 28 | . 6 1 1 . 4 2 . . 5 1 . . 4 . 1 . 3 . Terminals 19 | . 4 1 . . 1 1 . . 5 1 . . 3 . . . 3 . Track 3 | . . . . . 1 . . . . 1 . . 1 . . . . . Botnet 11 | . 3 . . . . 1 . . 3 . . . 1 . . . 3 . Disrupt 2 | . . 1 . . . . . . 1 . . . . . . . . . Operators 3 | . 1 . . . . . . . 1 . . . 1 . . . . . Fabricators 1 | . . . . . . . . . . . . . . . 1 . . . Overload 1 | . . . . . . . . . . . . . . . 1 . . . Repair Stations . | . . . . . . . . . . . . . . . . . . . Recycling Units 5 | . 2 . . . 3 . . . . . . . . . . . . . Reject 1 | . . . . . 1 . . . . . . . . . . . . . Recyclers 2 | . 1 . . . 1 . . . . . . . . . . . . . Mask 2 | . 1 . . . 1 . . . . . . . . . . . . . Scanalyzers . | . . . . . . . . . . . . . . . . . . . Garrison Access 3 | . . . 1 . . 1 . . . . . . 1 . . . . . Reprogram 3 | . . . 1 . . 1 . . . . . . 1 . . . . . Data Cores Recovered . | . . . . . . . . . . . . . . . . . . . Used . | . . . . . . . . . . . . . . . . . . . Hacking Detections 45 | . 7 5 . . 5 2 . 4 4 . . 1 3 3 2 2 5 2 Full Trace Events . | . . . . . . . . . . . . . . . . . . . Feedback Events . | . . . . . . . . . . . . . . . . . . . Feedback Blocked . | . . . . . . . . . . . . . . . . . . . Robot Schematics Acquired 1 | . . . . . . . . . . . . . . . . 1 . . Robots Built . | . . . . . . . . . . . . . . . . . . . Matter . | . . . . . . . . . . . . . . . . . . . Time . | . . . . . . . . . . . . . . . . . . . Total Robot Build Rating . | . . . . . . . . . . . . . . . . . . . Part Schematics Acquired 7 | . . . . . 7 . . . . . . . . . . . . . Parts Built 6 | . . . . . . 2 . . . . . . 1 2 . 1 . . Matter 708 | . . . . . . 256 . . . . . . 102 204 . 146 . . Time 205 | . . . . . . 42 . . . . . . 51 76 . 36 . . Total Part Build Rating 22 | . . . . . . 16 . . . . . . 1 2 . 3 . . Parts Repaired 5 | . 1 4 . . . . . . . . . . . . . . . . Time 161 | . 26 135 . . . . . . . . . . . . . . . . Parts Recycled . | . . . . . . . . . . . . . . . . . . . Recycled Matter . | . . . . . . . . . . . . . . . . . . . Retrieved Matter . | . . . . . . . . . . . . . . . . . . . Retrieved Components 22 | . 9 . . . 5 . . . . . . . 8 . . . . . Parts Scanalyzed 7 | . . . . . 7 . . . . . . . . . . . . . Part Schematics Acquired 7 | . . . . . 7 . . . . . . . . . . . . . Parts Damaged . | . . . . . . . . . . . . . . . . . . . Bothacking | -11 -10 -9 -8 -8 -7 -6 -6 -6 -6 -6 -6 -6 -5 -4 -3 -2 -1 -1 ------------ Run | Scr Mat Mat Mat Gar Fac Fac Was Fac Ext Cet Arc Hub Fac Fac Res Res Acc Com Used RIF Installer 1 | . . . . 1 . . . . . . . . . . . . . . Robots Hacked 14 | . . 3 . . 4 1 . . . . . . 2 4 . . . . Non-combat 6 | . . 3 . . 3 . . . . . . . . . . . . . Combat 8 | . . . . . 1 1 . . . . . . 2 4 . . . . Robot Hacks Applied 19 | . . 3 . . 9 1 . . . . . . 2 4 . . . . no_distress 6 | . . 3 . . 3 . . . . . . . . . . . . . find_chute 1 | . . . . . 1 . . . . . . . . . . . . . find_fabricator 1 | . . . . . 1 . . . . . . . . . . . . . drop_inventory 1 | . . . . . 1 . . . . . . . . . . . . . locate_stockpiles 1 | . . . . . 1 . . . . . . . . . . . . . find_garrison 1 | . . . . . . 1 . . . . . . . . . . . . go_dormant 1 | . . . . . . . . . . . . . . 1 . . . . streamctrl_low 1 | . . . . . 1 . . . . . . . . . . . . . streamctrl_high 1 | . . . . . . . . . . . . . 1 . . . . . formatsys_high 5 | . . . . . 1 . . . . . . . 1 3 . . . . Relay Couplers Released 15 | . . . . 15 . . . . . . . . . . . . . . Machine Destruction 15 | . . . . 15 . . . . . . . . . . . . . . Attached 5 | . . . . 1 2 1 . . . . . . 1 . . . . . Robots Rewired 11 | . . . . . . . . . 11 . . . . . . . . . Allies Hacked . | . . . . . . . . . . . . . . . . . . . Hacks Repelled . | . . . . . . . . . . . . . . . . . . . Allies | -11 -10 -9 -8 -8 -7 -6 -6 -6 -6 -6 -6 -6 -5 -4 -3 -2 -1 -1 -------- Run | Scr Mat Mat Mat Gar Fac Fac Was Fac Ext Cet Arc Hub Fac Fac Res Res Acc Com Total Allies 37 | . . . 2 . 2 2 . . 18 5 . . 5 3 . . . . Largest Group 12 | . . . 2 2 1 2 2 . 12 8 5 3 6 2 . . . . Highest-Rated Group 495 | . . . 30 30 32 82 82 . 493 495 407 282 369 105 . . . . Highest-Rated Ally 156 | . . . 15 15 32 41 41 . 156 156 94 94 94 58 . . . . Total Orders 4 | . . . . . . . . . . . . . 2 . . . 2 . COLLECT 4 | . . . . . . . . . . . . . 2 . . . 2 . Ally Attacks 335 | . . . 2 12 6 5 10 . 103 56 19 25 85 12 . . . . Total Damage 9223 | . . . 54 221 210 120 522 . 2718 1297 563 889 2366 263 . . . . Kills 54 | . . . 1 . 2 . . . 18 10 2 5 15 1 . . . . Allies Corrupted . | . . . . . . . . . . . . . . . . . . . Allies Melted . | . . . . . . . . . . . . . . . . . . . Intel | -11 -10 -9 -8 -8 -7 -6 -6 -6 -6 -6 -6 -6 -5 -4 -3 -2 -1 -1 ------- Run | Scr Mat Mat Mat Gar Fac Fac Was Fac Ext Cet Arc Hub Fac Fac Res Res Acc Com Robot Analysis Total 4 | . 3 . . . . . . . 1 . . . . . . . . . Derelict Logs Recovered . | . . . . . . . . . . . . . . . . . . . Drone Launches 4 | . . . . . . . . . . . . . 2 . . . 2 . Drone Recoveries . | . . . . . . . . . . . . . . . . . . . Exploration | -11 -10 -9 -8 -8 -7 -6 -6 -6 -6 -6 -6 -6 -5 -4 -3 -2 -1 -1 ------------- Run | Scr Mat Mat Mat Gar Fac Fac Was Fac Ext Cet Arc Hub Fac Fac Res Res Acc Com Turns Passed 10987 | 37 1160 1377 182 1372 861 829 127 544 827 331 157 190 664 340 716 613 493 167 Spaces Moved 8263 | 19 781 567 77 787 631 580 75 397 526 209 105 111 389 212 407 818 1087 485 Core 790 | . . . . . . . . . . . . . . . 86 359 332 13 Treads . | . . . . . . . . . . . . . . . . . . . Legs 5003 | 16 . 567 77 787 631 580 75 397 526 209 105 111 389 212 321 . . . Wheels 784 | 3 781 . . . . . . . . . . . . . . . . . Hover . | . . . . . . . . . . . . . . . . . . . Flight 1686 | . . . . . . . . . . . . . . . . 459 755 472 Fastest Speed 20 | 100 100 120 150 150 120 115 117 120 120 120 120 120 120 120 50 40 23 20 Average Speed 102 | 116 109 143 150 150 125 117 119 121 123 131 124 120 120 120 120 63 36 29 Slowest Speed 156 | 120 110 150 150 150 150 120 120 122 156 150 150 120 150 120 150 150 150 50 Overloaded Moves . | . . . . . . . . . . . . . . . . . . . Propulsion Burnouts . | . . . . . . . . . . . . . . . . . . . Robots Hopped 25 | . . . . . . . . . . . . . . . . 10 10 5 Cave-ins Triggered 1 | . . . . . . . 1 . . . . . . . . . . . Exploration Rate (%) 38 | 2 87 53 9 74 22 11 78 12 71 69 89 22 13 9 11 29 39 27 Regions Visited 18 Branch Regions 5 Pre-discovered Areas . | . . . . . . . . . . . . . . . . . . . Known Exits Taken 11 | . . . 1 . . . . 1 1 1 1 1 1 1 1 1 1 . Unknown Exits Taken 4 | 1 1 1 . . 1 . . . . . . . . . . . . . Scrap Searched . | . . . . . . . . . . . . . . . . . . . Spaces Dug 39 | . . . . . . 5 18 2 . . . 3 3 . . 1 6 1 Terrain Destroyed 358 | . . . . 28 1 21 18 7 3 35 . 168 19 2 31 1 23 1 Melee 8 | . . . . . . . . . . . . . . . . 1 6 1 Projectile 88 | . . . . . 1 10 18 7 3 4 . 5 19 2 19 . . . AOE 262 | . . . . 28 . 11 . . . 31 . 163 . . 12 . 17 . Actions | -11 -10 -9 -8 -8 -7 -6 -6 -6 -6 -6 -6 -6 -5 -4 -3 -2 -1 -1 --------- Run | Scr Mat Mat Mat Gar Fac Fac Was Fac Ext Cet Arc Hub Fac Fac Res Res Acc Com Total 9948 | 26 987 967 112 913 679 693 94 433 667 241 118 138 509 275 558 889 1148 501 Wait 643 | . 91 242 12 14 11 54 . 7 27 5 . 6 42 29 43 46 9 5 Move 8197 | 18 780 566 76 785 630 580 73 396 525 208 104 110 388 212 407 797 1067 475 Hop 24 | . . . . . . . . . . . . . . . . 10 9 5 Pick Up 149 | 2 29 16 2 15 6 12 . 6 11 1 3 1 13 4 14 2 10 2 Fast Attach 77 | 1 2 15 2 1 3 1 1 1 3 4 1 . 3 2 8 18 11 . Attach 82 | . 2 10 1 3 . 3 1 5 6 . . 1 6 1 22 2 18 1 Detach 13 | . . . . . . . . 1 . . . . . . 2 2 7 1 Swap 77 | 2 3 11 2 9 7 10 . . 6 5 . 4 9 8 1 . . . Drop 157 | . 21 24 3 14 8 12 . 2 10 6 4 1 11 6 21 7 6 1 Fire 384 | 3 59 80 14 32 5 20 18 15 20 12 6 15 35 8 38 3 . 1 Melee 32 | . . 3 . . 9 1 . . . . . . 2 4 . 1 10 2 Ram 4 | . . . . . . . . . . . . . . . 2 1 1 . Kick . | . . . . . . . . . . . . . . . . . . . Crush . | . . . . . . . . . . . . . . . . . . . Escape Stasis 49 | . . . . 40 . . 1 . . . . . . . . . . 8 Rewire 60 | . . . . . . . . . 59 . . . . 1 . . . . Trap . | . . . . . . . . . . . . . . . . . . . Miscellaneous . | . . . . . . . . . . . . . . . . . . . Route ------- -11/Scrapyard -10/Materials (discovered 4 exits: *Mat x3 / [*Min]) -9/Materials (discovered 3 exits: *Mat / Min x2) -8/Materials -8/Garrison (discovered 3 exits: *Fac x3) -7/Factory -6/Factory -6/Waste -6/Factory -6/Extension (discovered 2 exits: *Fac / *Cet) -6/Cetus (discovered 2 exits: *Fac / *Arc) -6/Archives (discovered 3 exits: *Fac / *Hub x2) -6/Hub_04(d) -5/Factory (discovered 6 exits: *Fac x4 / Upp x2) -4/Factory -3/Research -2/Research (discovered 3 exits: *Acc x3) -1/Access -1/Command (discovered 1 exit: [*Sur]) History --------- Turn | Location | Event 10 | -11/Scrapyard | Discovered new exit (range 3) 38 | -11/Scrapyard | Entered Materials 172 | -10/Materials | Repaired Aluminum Leg 305 | -10/Materials | Build established: Mutant 385 | -10/Materials | Discovered new exit (range 4) 561 | -10/Materials | Discovered new exit (range 13) 699 | -10/Materials | Discovered new exit (range 15) 765 | -10/Materials | Core integrity fell below 50% 820 | -10/Materials | Discovered new exit (range 15) 1198 | -10/Materials | Entered another Materials area 1198 | -9/Materials | Evolved 2 slots: Propulsion x2 1967 | -9/Materials | Identified exit to Mines 2267 | -9/Materials | Repaired Aluminum Leg 2320 | -9/Materials | Repaired Imp. Assault Rifle 2353 | -9/Materials | Repaired Imp. Aluminum Leg 2380 | -9/Materials | Discovered new exit (range 14) 2450 | -9/Materials | Repaired Aluminum Leg 2575 | -9/Materials | Entered another Materials area 2575 | -8/Materials | Evolved 2 slots: Utility x1, Weapon x1 2676 | -8/Materials | Identified exit to Garrison 2749 | -8/Materials | Garrison activated, responded to threat 2757 | -8/Materials | Entered Garrison 2757 | -8/Garrison | Accompanied by 2 allies 2801 | -8/Garrison | Garrison Relay disabled 2804 | -8/Garrison | Triggered checkpoint 2904 | -8/Garrison | Triggered checkpoint 2908 | -8/Garrison | Triggered checkpoint 2925 | -8/Garrison | Triggered checkpoint 2979 | -8/Garrison | Lost 3 parts (2n1u) 2987 | -8/Garrison | Destroyed 14 combat bots 3088 | -8/Garrison | Discovered new exit (range 9) 3148 | -8/Garrison | Triggered checkpoint 3225 | -8/Garrison | Discovered new exit (range 12) 3277 | -8/Garrison | Build established: Scavenger-Tank 3316 | -8/Garrison | Triggered checkpoint 3382 | -8/Garrison | Discovered new exit (range 14) 3415 | -8/Garrison | Installed Relay Interface Framework 3719 | -8/Garrison | Garrison Relay disabled 3838 | -8/Garrison | Triggered checkpoint 3892 | -8/Garrison | Garrison Relay disabled 4002 | -8/Garrison | Triggered checkpoint 4025 | -8/Garrison | Garrison Relay disabled 4129 | -8/Garrison | Entered Factory 4129 | -7/Factory | Evolved 2 slots: Utility x2 4189 | -7/Factory | Build established: Bothacker-Gunner 4609 | -7/Factory | Build established: Bothacker-Mutant 4914 | -7/Factory | Build established: Bothacker-Gunner 4930 | -7/Factory | Discovered new exit (range 15) 4990 | -7/Factory | Entered another Factory area 4990 | -6/Factory | Accompanied by 1 ally 4990 | -6/Factory | Evolved 2 slots: Utility x2 5212 | -6/Factory | Fabricated Biometal Leg (x2) 5819 | -6/Factory | Sucked down chute 5819 | -6/Factory | Entered Waste 5828 | -6/Waste | Spotted C-40 Crusher 5829 | -6/Waste | Spotted C-40 Crusher 5834 | -6/Waste | EMP discharged 5835 | -6/Waste | 2 allies followed down the chute 5845 | -6/Waste | Crushed by Compactor (1 part destroyed, 2 dropped) 5851 | -6/Waste | Spotted C-40 Crusher 5851 | -6/Waste | Spotted C-40 Crusher 5877 | -6/Waste | Spotted C-40 Crusher 5885 | -6/Waste | Spotted C-40 Crusher 5920 | -6/Waste | Crushed by falling debris 5934 | -6/Waste | EMP discharged 5934 | -6/Waste | System corruption reached 10% 5935 | -6/Waste | Discovered new exit (range 10) 5945 | -6/Waste | Identified exit to Factory 5946 | -6/Waste | Entered Factory 6178 | -6/Factory | Garrison activated, responded to threat 6224 | -6/Factory | Lost 3 parts (2n1w) 6230 | -6/Factory | Destroyed 7 combat bots 6313 | -6/Factory | Build established: Mutant 6452 | -6/Factory | Discovered new exit (range 10) 6489 | -6/Factory | Identified exit to Extension 6490 | -6/Factory | Entered Extension 6602 | -6/Extension | Rescued A7 6660 | -6/Extension | Rescued a captive Derelict 6774 | -6/Extension | Rescued a captive Derelict 6886 | -6/Extension | Rescued a captive Derelict 6892 | -6/Extension | Spotted B-75 Beast 6896 | -6/Extension | Build established: Hacker-Gunner 6901 | -6/Extension | Spotted B-75 Beast 6949 | -6/Extension | Allies destroyed B-75 Beast 6958 | -6/Extension | Allies destroyed B-75 Beast 6978 | -6/Extension | Lost 5 parts (2n3w) 7032 | -6/Extension | Rescued a captive Derelict 7037 | -6/Extension | Rescued a captive Derelict 7038 | -6/Extension | Rescued a captive Derelict 7299 | -6/Extension | Discovered new exit (range 10) 7300 | -6/Extension | Discovered new exit (range 6) 7307 | -6/Extension | Identified exit to Cetus 7317 | -6/Extension | Entered Cetus 7317 | -6/Cetus | Accompanied by 8 allies 7322 | -6/Cetus | Acquired a Cetus Manufacturing Module code from A7 7334 | -6/Cetus | Spotted Cetus Guard 7334 | -6/Cetus | Spotted Cetus Guard 7334 | -6/Cetus | Allies destroyed Cetus Guard 7336 | -6/Cetus | Spotted Cetus Guard 7341 | -6/Cetus | Allies destroyed Cetus Guard 7341 | -6/Cetus | Spotted Cetus Guard 7344 | -6/Cetus | Allies destroyed Cetus Guard 7351 | -6/Cetus | Allies destroyed Cetus Guard 7393 | -6/Cetus | Started Cetus Manufacturing Module 7404 | -6/Cetus | Escorted A7 to Cetus Mainframe 7418 | -6/Cetus | Manufactured an Enhanced Grunt 7422 | -6/Cetus | Discovered new exit (range 16) 7443 | -6/Cetus | Manufactured an Enhanced Grunt 7447 | -6/Cetus | Spotted Cetus Guard 7447 | -6/Cetus | Spotted Cetus Guard 7452 | -6/Cetus | Allies destroyed Cetus Guard 7452 | -6/Cetus | Spotted Cetus Guard 7458 | -6/Cetus | Spotted Cetus Guard 7462 | -6/Cetus | Destroyed Cetus Guard 7464 | -6/Cetus | Allies destroyed Cetus Guard 7468 | -6/Cetus | Manufactured an Enhanced Grunt 7469 | -6/Cetus | Destroyed Cetus Guard 7473 | -6/Cetus | Extracted ID and sensor layout for unrecognized location from A7's data core 7493 | -6/Cetus | Manufactured an Enhanced Grunt 7493 | -6/Cetus | Discovered new exit (range 15) 7499 | -6/Cetus | Met Revision 17 7518 | -6/Cetus | Manufactured an Enhanced Grunt 7637 | -6/Cetus | Identified exit to Archives 7648 | -6/Cetus | Entered Archives 7648 | -6/Archives | Accompanied by 5 allies 7711 | -6/Archives | Discovered new exit (range 14) 7721 | -6/Archives | Unable to access archive contents 7725 | -6/Archives | Discovered new exit (range 14) 7738 | -6/Archives | Discovered new exit (range 15) 7791 | -6/Archives | Build established: Scavenger-Tank 7800 | -6/Archives | Identified exit to Hub_04(d) 7805 | -6/Archives | Entered Hub_04(d) 7805 | -6/Hub_04(d) | Accompanied by 3 allies 7945 | -6/Hub_04(d) | Discovered new exit (range 9) 7967 | -6/Hub_04(d) | Identified exit to Factory 7984 | -6/Hub_04(d) | Network Hub disabled 7995 | -6/Hub_04(d) | Entered Factory 7995 | -5/Factory | Accompanied by 3 allies 7995 | -5/Factory | Evolved 2 slots: Utility x2 8197 | -5/Factory | Identified exit to Upper Caves 8197 | -5/Factory | Identified exit to Factory 8281 | -5/Factory | Fabricated Datajack (x1) 8295 | -5/Factory | First assault squad dispatched 8472 | -5/Factory | System corruption reached 10% 8659 | -5/Factory | Entered another Factory area 8659 | -4/Factory | Evolved 2 slots: Power x1, Utility x1 8711 | -4/Factory | Fabricated Datajack (x1) 8845 | -4/Factory | Build established: Scavenger-Skirmisher 8927 | -4/Factory | Fabricated Datajack? 8960 | -4/Factory | Discovered new exit (range 22) 8998 | -4/Factory | Identified exit to Research 8999 | -4/Factory | Entered Research 8999 | -3/Research | Evolved 2 slots: Utility x2 9499 | -3/Research | First assault squad dispatched 9668 | -3/Research | Core integrity fell below 50% 9690 | -3/Research | Core integrity fell below 20% 9712 | -3/Research | Discovered new exit (range 6) 9714 | -3/Research | Identified exit to Research 9715 | -3/Research | Entered another Research area 9715 | -2/Research | Evolved 2 slots: Propulsion x2 9723 | -2/Research | Lost 26 parts (1p12n7u6w) 9950 | -2/Research | Build established: Mutant 9986 | -2/Research | Fabricated Adv. Sensor Array (x1) 10062 | -2/Research | Found Enh. Force Lance 10252 | -2/Research | Identified exit to Access 10259 | -2/Research | Lost 7 parts (2n5u) 10328 | -2/Research | Entered Access 10328 | -1/Access | Evolved 2 slots: Propulsion x2 10531 | -1/Access | Spotted B-99 Colossus 10558 | -1/Access | Energy Cycler disabled 10594 | -1/Access | System corruption reached 10% 10603 | -1/Access | Spotted B-99 Colossus 10802 | -1/Access | Discovered new exit (range 9) 10820 | -1/Access | Identified exit to Command 10821 | -1/Access | Entered Command 10843 | -1/Command | Build established: Sprinter 10901 | -1/Command | Spotted B-99 Colossus 10972 | -1/Command | Spotted Executioner 10972 | -1/Command | Spotted Executioner 10972 | -1/Command | Spotted Executioner 10972 | -1/Command | Spotted Executioner 10972 | -1/Command | Spotted Striker 10972 | -1/Command | Spotted Striker 10972 | -1/Command | Spotted Alpha 7 10972 | -1/Command | Spotted Alpha 7 10972 | -1/Command | Spotted B-99 Colossus 10976 | -1/Command | Spotted B-99 Colossus 10982 | -1/Command | Core integrity fell below 50% 10984 | -1/Command | Core integrity fell below 20% 10986 | -1/Command | Discovered new exit (range 8) 10988 | -1/Command | Destroyed by B-99 Colossus with Linear Accelerator Last Messages --------------- 10985_ Slug penetrates B-99 Colossus. 10985_ Knocked back. 10985_ Triggered Stasis Trap. 10985_ A bubble of rippling energy engulfs the area. 10985_ Field strength at 94. 10985_ Knocked back. 10985_ Penetrated by Slug. 10985_ Slug penetrates Executioner. 10985_ Field strength at 56. 10986_ The Access Shell folds into the floor. 10986_ EXIT=FOUND 10986_ Field strength at 26. 10987_ Stasis field depleted. 10988_ Triggered Stasis Trap. 10988_ A bubble of rippling energy engulfs the area. 10988_ Field strength at 94. 10988_ Penetrated by Slug. 10988_ Slug penetrates Wall. 10988_ Field strength at 80. 10988_ Field strength at 46. Map ----- +----------------------------------------------------+ | ????#* #???????#=! ! #?????????????? | | ????# "" #???????# !#????????????? | | ????# """" #?????#######+################ | | ##### """" #?????# + | | # "" #?????# #####+######## ####### | | # ####### # #??# #???????? | | # = + # #??# #????????? | | + # # // #??# #????????? | | # ! # # /// #??# #######??? | | # + # /// #??# #??? | | ### ######### #??####### #??? | | ################???????# #???###### #??? | | # #??????????????????# #???# + #??? | | # ! #??????????????????###########???# # #??? | | # #????????????????????????????????# [ # #### | | #!! #????????????????????????????????#* + | | #! #????????????????????????????????# ## | | # #????????##############??????????#! ## | | # #????? #?# #??????????#!! ## | | ##+###?? #?# BB#########??# ## | | # #?# ^BB; # # # #### ## | | + #?# ^ 7 ######## | | ### # #?# ^ ^ + | | #?# #?? #?# "" + | | #?# #???? #?# <" E E^ ; | | #?# #???????# @ BBK![E ; | | #?# #???????# BB^K% 7 ^ ;;; "#### | | #?# #???????# ; ;!! ; ;;### " | | #?# #???????# ;;;;;;;####?# #? | | #?# #???????# ########????# #???? | | #?# #???????##########;###???????????# #???? | | ### ##???????????????###?????????????# #???? | | ## #### #??????????????????????????# #???? | | #??????????????????????????+ +???? | | +??????????????????????????# #???? | | ## ### #??????????????????????????# #???? | | #######??? #??????????????????????????# #???? | | #??????## #??????????????????????????# #???? | | #???? # ???????????????????????????# #???? | | #?? # ???#+#?????????????????????# #???? | | # !!!# #?? +?????????????????????# ???? | | + !! # #?? #?????????????????????##+###???? | | # !! # #?? #??????????????????????????????? | | ##?###### #?? #??????????????????????????????? | | ######## ### #??????????????????????????????? | | #??????????????????????????????? | | +??????????????????????????????? | | ### ##??????????????????????????????? | | ####?# #???????????????????????????????? | | ?????# #???????????????????????????????? | +----------------------------------------------------+ Best States ------------- Heat Dissipation 59 Coolant Potential 50 Energy Generation 45 Energy Capacity 1165 Matter Stores 300 Matter Capacity 300 Sight Range 23 Robot Scan Range 16 Terrain Scan Range 24 Terrain Scan Density 210 Corruption Prevention 20 Armor Coverage 600 Resistance: EM 25 Evasion (%) 76 Targeting Accuracy 24 Melee Accuracy 8 Core Analysis 10 Offensive Hacking 12 Defensive Hacking 10 Item Schematics ----------------- Datajack | -7/Factory | Scanalyzed Imp. Aluminum Leg | -7/Factory | Scanalyzed Hcp. Matter Pod | -7/Factory | Scanalyzed Adv. Sensor Array | -7/Factory | Scanalyzed Adv. Signal Interpreter | -7/Factory | Scanalyzed Imp. Terrain Scan Processor | -7/Factory | Scanalyzed Adv. Terrain Scanner | -7/Factory | Scanalyzed Robot Schematics ------------------ H-77 Assassin | -2/Research | Hacked Fabricated ------------ Biometal Leg | x2 | -6/Factory | Preloaded Datajack | x1 | -5/Factory Datajack | x1 | -4/Factory Datajack | x1 | -4/Factory Adv. Sensor Array | x1 | -2/Research Alien Tech Used ----------------- None Achievements -------------- Collateral Damage Challenges ------------ None Game ------ Seed HackingGravitonLoader Manual? 0 Play Time 02:06:40 Cumulative 142.3 hours Start 2020.06.03 @ 02:58:41 End 2020.06.03 @ 05:10:31 Sessions 1 Manual Loads 0 Difficulty Rogue Special Mode None Game No. 158 Rogue 158 Adventurer 0 Explorer 0 Win Type - Total 16 Types 9/0/2/5/0/0/0 Lore% 60 Gallery% 76 Achievement% 56 Wizard Run 0 Options --------- ASCII 0 Keyboard 0 Movement Mouse Keybinds 0 Fullscreen 0 Font 20/SmallcapsGlow Map View 66x50 Tactical HUD 1 Map Filters NONE Filters NONE Steam 1 RUN: 8059af8d-aa85-4aea-b427-f694e4b55ccf